[Event "*** Titled Tuesday 3|2 Blitz"]
[Site "Chess.com"]
[Date "2017.06.06"]
[Round "5"]
[White "XDPS"]
[Black "Gordima"]
[Result "1/2-1/2"]
[WhiteElo "2516"]
[BlackElo "2531"]
[TimeControl "180+2"]
[EndTime "14:57:12 PDT"]
[Termination "Game drawn by repetition"]

1. e4 {[%clk 0:03:02]} 1... c5 {[%clk 0:03:00.9]} 2. Nf3 {[%clk 0:03:02.6]} 2...
e6 {[%clk 0:03:01.9]} 3. d4 {[%clk 0:03:02.7]} 3... cxd4 {[%clk 0:03:03.8]} 4.
Nxd4 {[%clk 0:03:04.4]} 4... a6 {[%clk 0:03:05.7]} 5. c4 {[%clk 0:03:05.1]} 5...
Nf6 {[%clk 0:03:06.5]} 6. Nc3 {[%clk 0:03:06.1]} 6... Qc7 {[%clk 0:03:07.3]} 7.
Be2 {[%clk 0:03:06.7]} 7... b6 {[%clk 0:03:06.4]} 8. O-O {[%clk 0:03:07.5]} 8...
Bb7 {[%clk 0:03:07.8]} 9. f3 {[%clk 0:03:08.9]} 9... Be7 {[%clk 0:02:54]} 10.
Be3 {[%clk 0:03:08.9]} 10... d6 {[%clk 0:02:52.6]} 11. Qd2 {[%clk 0:03:10]}
11... Nbd7 {[%clk 0:02:52.7]} 12. Rfc1 {[%clk 0:03:11.6]} 12... O-O {[%clk
0:02:53.8]} 13. a4 {[%clk 0:03:12]} 13... Rfc8 {[%clk 0:02:44.3]} 14. a5 {[%clk
0:03:10.1]} 14... bxa5 {[%clk 0:02:44]} 15. Nb3 {[%clk 0:03:11.3]} 15... Rab8
{[%clk 0:02:44.7]} 16. Nxa5 {[%clk 0:03:12.1]} 16... Ba8 {[%clk 0:02:45.9]} 17.
Kh1 {[%clk 0:03:05.9]} 17... Ne5 {[%clk 0:02:38.1]} 18. b3 {[%clk 0:03:00.4]}
18... h5 {[%clk 0:02:37.9]} 19. Bg1 {[%clk 0:02:44.2]} 19... h4 {[%clk
0:02:37.8]} 20. f4 {[%clk 0:02:34.7]} 20... Ng6 {[%clk 0:02:35.6]} 21. Bf3
{[%clk 0:02:33.7]} 21... d5 {[%clk 0:02:13.6]} 22. e5 {[%clk 0:02:30.3]} 22...
Ne4 {[%clk 0:02:13.5]} 23. Nxe4 {[%clk 0:02:07.2]} 23... dxe4 {[%clk 0:02:15.4]}
24. Bg4 {[%clk 0:02:08.8]} 24... Bb4 {[%clk 0:02:11.8]} 25. Qa2 {[%clk
0:02:09.9]} 25... Nxf4 {[%clk 0:02:08.9]} 26. Be3 {[%clk 0:02:08.1]} 26... Qxe5
{[%clk 0:02:02.1]} 27. c5 {[%clk 0:02:04.6]} 27... h3 {[%clk 0:01:39.9]} 28. Nc4
{[%clk 0:01:57.7]} 28... hxg2+ {[%clk 0:01:39.4]} 29. Kg1 {[%clk 0:01:58.8]}
29... Qg5 {[%clk 0:01:37.1]} 30. h3 {[%clk 0:01:52]} 30... Bxc5 {[%clk
0:01:37.6]} 31. Qf2 {[%clk 0:01:51.3]} 31... Nxh3+ {[%clk 0:01:37]} 32. Bxh3
{[%clk 0:01:51.8]} 32... Bxe3 {[%clk 0:01:32]} 33. Nxe3 {[%clk 0:01:49.8]} 33...
f5 {[%clk 0:01:21.1]} 34. Rxc8+ {[%clk 0:01:38.3]} 34... Rxc8 {[%clk 0:01:21.5]}
35. Nxg2 {[%clk 0:01:39.8]} 35... Rc1+ {[%clk 0:01:11]} 36. Rxc1 {[%clk
0:01:40]} 36... Qxc1+ {[%clk 0:01:12.9]} 37. Kh2 {[%clk 0:01:41.4]} 37... Bd5
{[%clk 0:01:09.9]} 38. b4 {[%clk 0:01:41.4]} 38... g5 {[%clk 0:01:03.6]} 39.
Bxf5 {[%clk 0:01:36.6]} 39... Qc7+ {[%clk 0:01:03.5]} 40. Kg1 {[%clk 0:01:34.1]}
40... Qc1+ {[%clk 0:00:40.9]} 41. Kh2 {[%clk 0:01:34.7]} 41... Qc7+ {[%clk
0:00:23.6]} 42. Kh3 {[%clk 0:01:35.8]} 42... exf5 {[%clk 0:00:22.5]} 43. Qxf5
{[%clk 0:01:36.4]} 43... Qh7+ {[%clk 0:00:21.8]} 44. Kg4 {[%clk 0:01:37.7]}
44... Qxf5+ {[%clk 0:00:16.8]} 45. Kxf5 {[%clk 0:01:39.1]} 45... Kf7 {[%clk
0:00:16.4]} 46. Ne3 {[%clk 0:01:40]} 46... Bb7 {[%clk 0:00:07.6]} 47. Nc4 {[%clk
0:01:38.8]} 47... Ke7 {[%clk 0:00:08.2]} 48. Kxg5 {[%clk 0:01:30.3]} 48... Ke6
{[%clk 0:00:09.3]} 49. Kf4 {[%clk 0:01:31.2]} 49... Kd5 {[%clk 0:00:09.7]} 50.
Na5 {[%clk 0:01:26.2]} 50... Bc8 {[%clk 0:00:07.3]} 51. Ke3 {[%clk 0:01:26.9]}
51... Bf5 {[%clk 0:00:07.3]} 52. Nb3 {[%clk 0:01:19.8]} 52... Kc4 {[%clk
0:00:04.9]} 53. Nc5 {[%clk 0:01:11.3]} 53... Kb5 {[%clk 0:00:05.9]} 54. Kd4
{[%clk 0:01:06.4]} 54... Bh7 {[%clk 0:00:06.6]} 55. Ke3 {[%clk 0:01:00.3]} 55...
a5 {[%clk 0:00:07.6]} 56. Nxe4 {[%clk 0:01:00.3]} 56... Kxb4 {[%clk 0:00:08.7]}
57. Nf6 {[%clk 0:00:51.8]} 57... a4 {[%clk 0:00:09.8]} 58. Nd5+ {[%clk
0:00:44.2]} 58... Kb3 {[%clk 0:00:10.6]} 59. Kd2 {[%clk 0:00:41.4]} 59... a3
{[%clk 0:00:11.5]} 60. Nc3 {[%clk 0:00:43]} 60... Bg6 {[%clk 0:00:09.4]} 61. Ne2
{[%clk 0:00:34.6]} 61... Kb2 {[%clk 0:00:10.5]} 62. Nc3 {[%clk 0:00:34.1]} 62...
Bc2 {[%clk 0:00:11.2]} 63. Na2 {[%clk 0:00:33.4]} 63... Bg6 {[%clk 0:00:11.1]}
64. Nc3 {[%clk 0:00:32.9]} 64... Bf5 {[%clk 0:00:11.6]} 65. Nd1+ {[%clk
0:00:31.4]} 65... Kb3 {[%clk 0:00:11.6]} 66. Nc3 {[%clk 0:00:33.3]} 66... Bg6
{[%clk 0:00:11.1]} 67. Ne2 {[%clk 0:00:29.1]} 67... Bh7 {[%clk 0:00:09.6]} 68.
Nc3 {[%clk 0:00:27.1]} 68... Bf5 {[%clk 0:00:10.7]} 69. Ne2 {[%clk 0:00:28.2]}
69... Bg6 {[%clk 0:00:12]} 70. Nc3 {[%clk 0:00:29.2]} 70... Bh5 {[%clk
0:00:13.4]} 71. Kc1 {[%clk 0:00:29.4]} 71... Bg6 {[%clk 0:00:14.4]} 72. Kd2
{[%clk 0:00:30]} 72... Kb2 {[%clk 0:00:15.5]} 73. Nd1+ {[%clk 0:00:30.1]} 73...
Ka1 {[%clk 0:00:13]} 74. Nc3 {[%clk 0:00:29]} 74... Kb2 {[%clk 0:00:13.9]} 75.
Nd1+ {[%clk 0:00:30]} 75... Kb3 {[%clk 0:00:15.2]} 76. Nc3 {[%clk 0:00:31]}
76... Bb1 {[%clk 0:00:12.5]} 77. Kc1 {[%clk 0:00:29]} 77... Bf5 {[%clk
0:00:10.4]} 78. Kd2 {[%clk 0:00:30.3]} 78... Kc4 {[%clk 0:00:10.9]} 79. Na2
{[%clk 0:00:20.9]} 79... Bg6 {[%clk 0:00:11.1]} 80. Nc3 {[%clk 0:00:20.5]} 80...
Bd3 {[%clk 0:00:11.9]} 81. Na2 {[%clk 0:00:21.6]} 81... Be4 {[%clk 0:00:11.5]}
82. Nc3 {[%clk 0:00:22.5]} 82... Bb1 {[%clk 0:00:12.9]} 83. Kc1 {[%clk
0:00:21.8]} 83... Bd3 {[%clk 0:00:13.4]} 84. Kd2 {[%clk 0:00:22.1]} 84... Bf5
{[%clk 0:00:14.4]} 85. Na2 {[%clk 0:00:22.7]} 85... Kd4 {[%clk 0:00:15.6]} 86.
Nc3 {[%clk 0:00:22.6]} 86... Kc4 {[%clk 0:00:16.4]} 87. Na2 {[%clk 0:00:23.9]}
87... Be6 {[%clk 0:00:16.3]} 88. Kc2 {[%clk 0:00:24.4]} 88... Bf5+ {[%clk
0:00:16.6]} 89. Kd2 {[%clk 0:00:25.9]} 89... Kb3 {[%clk 0:00:16.2]} 90. Nc3
{[%clk 0:00:27.2]} 90... Bc2 {[%clk 0:00:18]} 91. Ne2 {[%clk 0:00:28.3]} 91...
Kb2 {[%clk 0:00:17.9]} 92. Nc3 {[%clk 0:00:28.7]} 92... Bb3 {[%clk 0:00:17.1]}
93. Kd3 {[%clk 0:00:26.1]} 93... Kc1 {[%clk 0:00:18]} 94. Ne2+ {[%clk
0:00:24.4]} 94... Kb2 {[%clk 0:00:17.9]} 95. Nc3 {[%clk 0:00:26.3]} 95... Bf7
{[%clk 0:00:12]} 96. Kd2 {[%clk 0:00:27]} 96... Be6 {[%clk 0:00:12.4]} 97. Nd1+
{[%clk 0:00:27.6]} 97... Kb3 {[%clk 0:00:12.9]} 98. Nc3 {[%clk 0:00:29.5]} 98...
Bc4 {[%clk 0:00:12.6]} 99. Kc1 {[%clk 0:00:27.4]} 99... Bd3 {[%clk 0:00:11.8]}
100. Kd2 {[%clk 0:00:27.9]} 100... Bc2 {[%clk 0:00:11.4]} 101. Kc1 {[%clk
0:00:27.8]} 101... Bh7 {[%clk 0:00:09.6]} 102. Kd2 {[%clk 0:00:29.2]} 102... Bg8
{[%clk 0:00:09.9]} 103. Kc1 {[%clk 0:00:30]} 103... Bh7 {[%clk 0:00:10.8]} 104.
Kd2 {[%clk 0:00:31]} 1/2-1/2

[Event "*** Titled Tuesday 3|2 Blitz"]
[Site "Chess.com"]
[Date "2017.06.06"]
[Round "6"]
[White "silverback96"]
[Black "goingin33"]
[Result "1-0"]
[WhiteElo "2128"]
[BlackElo "2180"]
[TimeControl "180+2"]
[EndTime "15:02:01 PDT"]
[Termination "silverback96 won by resignation"]

1. d4 {[%clk 0:03:02]} 1... Nf6 {[%clk 0:03:00.6]} 2. c4 {[%clk 0:03:03.9]} 2...
g6 {[%clk 0:03:01.2]} 3. g3 {[%clk 0:03:05.4]} 3... Bg7 {[%clk 0:03:00.9]} 4.
Bg2 {[%clk 0:03:07]} 4... O-O {[%clk 0:02:59.7]} 5. Nc3 {[%clk 0:03:07.5]} 5...
c5 {[%clk 0:02:56]} 6. d5 {[%clk 0:03:08.2]} 6... e6 {[%clk 0:02:57.2]} 7. Nf3
{[%clk 0:03:09.5]} 7... exd5 {[%clk 0:02:58.1]} 8. cxd5 {[%clk 0:03:11.4]} 8...
d6 {[%clk 0:02:57.2]} 9. O-O {[%clk 0:03:12.9]} 9... a6 {[%clk 0:02:57.9]} 10.
a4 {[%clk 0:03:13.8]} 10... Re8 {[%clk 0:02:57.7]} 11. Bf4 {[%clk 0:03:15.3]}
11... Ne4 {[%clk 0:02:49]} 12. Nxe4 {[%clk 0:03:16.2]} 12... Rxe4 {[%clk
0:02:50.9]} 13. Nd2 {[%clk 0:03:18.1]} 13... Rb4 {[%clk 0:02:49.4]} 14. b3
{[%clk 0:03:19.3]} 14... Bxa1 {[%clk 0:02:41.2]} 15. Qxa1 {[%clk 0:03:20.5]}
15... Qe7 {[%clk 0:02:40.5]} 16. Nc4 {[%clk 0:03:09.3]} 16... Rxc4 {[%clk
0:01:39.5]} 17. bxc4 {[%clk 0:03:08.7]} 17... Nd7 {[%clk 0:01:41]} 18. Bh6
{[%clk 0:03:08.6]} 18... f6 {[%clk 0:01:40.7]} 19. Rc1 {[%clk 0:02:42.5]} 19...
Ne5 {[%clk 0:01:36.2]} 20. Rc3 {[%clk 0:02:43.6]} 20... Nf7 {[%clk 0:01:19.1]}
21. Re3 {[%clk 0:02:43.4]} 21... Qd8 {[%clk 0:01:20.3]} 22. Qxf6 {[%clk
0:02:29.8]} 1-0

[Event "*** Titled Tuesday 3|2 Blitz"]
[Site "Chess.com"]
[Date "2017.06.06"]
[Round "6"]
[White "GMHess"]
[Black "Alexander_Moskalenko"]
[Result "1-0"]
[WhiteElo "2633"]
[BlackElo "2683"]
[TimeControl "180+2"]
[EndTime "15:02:40 PDT"]
[Termination "GMHess won by resignation"]

1. d4 {[%clk 0:03:01.5]} 1... Nf6 {[%clk 0:03:00.4]} 2. c4 {[%clk 0:03:00.2]}
2... g6 {[%clk 0:03:01.9]} 3. Nc3 {[%clk 0:03:00.3]} 3... d5 {[%clk 0:03:02.9]}
4. Bg5 {[%clk 0:03:01]} 4... Bg7 {[%clk 0:03:01.6]} 5. Bxf6 {[%clk 0:02:53]}
5... Bxf6 {[%clk 0:03:01.5]} 6. cxd5 {[%clk 0:02:54.5]} 6... Bg7 {[%clk
0:03:02.7]} 7. Nf3 {[%clk 0:02:51.8]} 7... c6 {[%clk 0:03:03]} 8. dxc6 {[%clk
0:02:52.6]} 8... Nxc6 {[%clk 0:03:03]} 9. e3 {[%clk 0:02:53.7]} 9... O-O {[%clk
0:03:01.1]} 10. Bb5 {[%clk 0:02:49.6]} 10... Qb6 {[%clk 0:03:00.6]} 11. O-O
{[%clk 0:02:44.1]} 11... Rd8 {[%clk 0:03:00.1]} 12. Qe2 {[%clk 0:02:41.2]} 12...
a6 {[%clk 0:02:50.6]} 13. Bxc6 {[%clk 0:02:24]} 13... Qxc6 {[%clk 0:02:52.5]}
14. Rac1 {[%clk 0:02:16.3]} 14... b5 {[%clk 0:02:41.6]} 15. e4 {[%clk 0:01:54]}
15... Qb7 {[%clk 0:02:38.1]} 16. Nd5 {[%clk 0:01:50.2]} 16... e6 {[%clk
0:02:22.4]} 17. Rc7 {[%clk 0:01:43.8]} 17... Qb8 {[%clk 0:02:23.4]} 18. Ne7+
{[%clk 0:01:43.1]} 18... Kf8 {[%clk 0:02:14.9]} 19. Qc2 {[%clk 0:01:18.1]} 19...
Bd7 {[%clk 0:02:11.6]} 20. Qc5 {[%clk 0:01:18.5]} 20... Ke8 {[%clk 0:02:12.9]}
21. Nc6 {[%clk 0:01:17.5]} 21... Bf8 {[%clk 0:01:57.5]} 22. Nxb8 {[%clk
0:01:17.3]} 22... Bxc5 {[%clk 0:01:57.6]} 23. Nxd7 {[%clk 0:01:18.7]} 23... Be7
{[%clk 0:01:54.2]} 24. Nde5 {[%clk 0:01:17]} 24... Rac8 {[%clk 0:01:53.3]} 25.
Rfc1 {[%clk 0:01:14.5]} 25... Rxc7 {[%clk 0:01:53.9]} 26. Rxc7 {[%clk
0:01:16.4]} 26... f6 {[%clk 0:01:55.3]} 27. Rxe7+ {[%clk 0:01:16.4]} 1-0

[Event "*** Titled Tuesday 3|2 Blitz"]
[Site "Chess.com"]
[Date "2017.06.06"]
[Round "6"]
[White "NTBT_DHS"]
[Black "amurdercastle"]
[Result "1-0"]
[WhiteElo "2435"]
[BlackElo "2286"]
[TimeControl "180+2"]
[EndTime "15:02:49 PDT"]
[Termination "NTBT_DHS won by resignation"]

1. d4 {[%clk 0:03:02]} 1... d5 {[%clk 0:03:00.4]} 2. c4 {[%clk 0:03:03]} 2... c6
{[%clk 0:02:59.2]} 3. Nf3 {[%clk 0:03:04.9]} 3... Nf6 {[%clk 0:02:59.6]} 4. e3
{[%clk 0:03:04.2]} 4... e6 {[%clk 0:03:00.8]} 5. b3 {[%clk 0:03:03.2]} 5... Nbd7
{[%clk 0:02:57.5]} 6. Bd3 {[%clk 0:03:03.5]} 6... b6 {[%clk 0:02:57.5]} 7. O-O
{[%clk 0:03:03.8]} 7... Bb7 {[%clk 0:02:58.9]} 8. Bb2 {[%clk 0:03:03.7]} 8...
Bd6 {[%clk 0:03:00.3]} 9. Nbd2 {[%clk 0:03:04.5]} 9... O-O {[%clk 0:03:01.2]}
10. Ne5 {[%clk 0:03:06.1]} 10... c5 {[%clk 0:02:55.1]} 11. Qe2 {[%clk
0:03:04.6]} 11... Ne4 {[%clk 0:02:52.5]} 12. Rad1 {[%clk 0:02:53.8]} 12... f5
{[%clk 0:02:27.9]} 13. Ndf3 {[%clk 0:02:42.7]} 13... cxd4 {[%clk 0:02:14.5]} 14.
exd4 {[%clk 0:02:36.1]} 14... Rc8 {[%clk 0:02:08.3]} 15. Nxd7 {[%clk 0:02:28.9]}
15... Qxd7 {[%clk 0:02:07.3]} 16. Ne5 {[%clk 0:02:30.4]} 16... Bxe5 {[%clk
0:02:01.2]} 17. dxe5 {[%clk 0:02:29.9]} 17... Qc7 {[%clk 0:01:57.2]} 18. Bxe4
{[%clk 0:02:15.7]} 18... fxe4 {[%clk 0:01:50.8]} 19. Qg4 {[%clk 0:02:08.6]}
19... Rce8 {[%clk 0:01:37.6]} 20. Ba3 {[%clk 0:02:03]} 20... Rf5 {[%clk
0:01:33]} 21. Bd6 {[%clk 0:02:03.6]} 21... Qf7 {[%clk 0:01:25.2]} 22. cxd5
{[%clk 0:01:55.1]} 22... exd5 {[%clk 0:01:19]} 23. Rc1 {[%clk 0:01:54.3]} 23...
Rfxe5 {[%clk 0:01:09.5]} 24. Rc7 {[%clk 0:01:49.9]} 24... R5e7 {[%clk
0:01:09.6]} 25. Bxe7 {[%clk 0:01:50.4]} 25... Rxe7 {[%clk 0:01:11.5]} 26. Rxb7
{[%clk 0:01:51.2]} 26... Rxb7 {[%clk 0:01:11.4]} 27. Qc8+ {[%clk 0:01:51]} 27...
Qf8 {[%clk 0:01:12.6]} 1-0

[Event "*** Titled Tuesday 3|2 Blitz"]
[Site "Chess.com"]
[Date "2017.06.06"]
[Round "6"]
[White "ehrenfeld"]
[Black "Enzy63"]
[Result "1-0"]
[WhiteElo "2380"]
[BlackElo "2037"]
[TimeControl "180+2"]
[EndTime "15:03:26 PDT"]
[Termination "ehrenfeld won by resignation"]

1. e4 {[%clk 0:03:02]} 1... e5 {[%clk 0:02:56.8]} 2. Nc3 {[%clk 0:03:02]} 2...
Bc5 {[%clk 0:02:56.2]} 3. Bc4 {[%clk 0:03:00.7]} 3... Nf6 {[%clk 0:02:52.5]} 4.
d3 {[%clk 0:03:00.2]} 4... a6 {[%clk 0:02:44.2]} 5. Be3 {[%clk 0:02:52.2]} 5...
Bxe3 {[%clk 0:02:26.7]} 6. fxe3 {[%clk 0:02:53.2]} 6... b5 {[%clk 0:02:21.9]} 7.
Bb3 {[%clk 0:02:53.8]} 7... b4 {[%clk 0:02:17]} 8. Nce2 {[%clk 0:02:53.5]} 8...
d5 {[%clk 0:02:17.6]} 9. Nf3 {[%clk 0:02:33.4]} 9... O-O {[%clk 0:01:48.2]} 10.
Nxe5 {[%clk 0:02:24.3]} 10... Re8 {[%clk 0:01:32.4]} 11. Nf3 {[%clk 0:01:15.2]}
11... dxe4 {[%clk 0:01:31.1]} 12. dxe4 {[%clk 0:01:15.3]} 12... Qxd1+ {[%clk
0:01:27.2]} 13. Rxd1 {[%clk 0:01:15.6]} 13... Bb7 {[%clk 0:01:25.6]} 14. e5
{[%clk 0:01:12.5]} 14... Ng4 {[%clk 0:00:37.3]} 15. Rd4 {[%clk 0:01:13.2]} 15...
Nxe5 {[%clk 0:00:28.6]} 16. Nxe5 {[%clk 0:01:12.8]} 1-0

[Event "*** Titled Tuesday 3|2 Blitz"]
[Site "Chess.com"]
[Date "2017.06.06"]
[Round "6"]
[White "angieflynn"]
[Black "metalbattler"]
[Result "0-1"]
[WhiteElo "1776"]
[BlackElo "2027"]
[TimeControl "180+2"]
[EndTime "15:04:35 PDT"]
[Termination "metalbattler won by resignation"]

1. Nf3 {[%clk 0:03:02]} 1... d5 {[%clk 0:02:59.5]} 2. c4 {[%clk 0:03:00.2]} 2...
c6 {[%clk 0:03:00.5]} 3. b3 {[%clk 0:03:00.1]} 3... Nf6 {[%clk 0:02:58.3]} 4.
Bb2 {[%clk 0:03:00.8]} 4... Bf5 {[%clk 0:02:59.6]} 5. d3 {[%clk 0:02:55.1]} 5...
e6 {[%clk 0:03:00.6]} 6. g3 {[%clk 0:02:53.9]} 6... Bb4+ {[%clk 0:03:00.2]} 7.
Nbd2 {[%clk 0:02:53.4]} 7... O-O {[%clk 0:02:57.2]} 8. Bg2 {[%clk 0:02:53.4]}
8... Qe7 {[%clk 0:02:56.1]} 9. O-O {[%clk 0:02:53.4]} 9... Ba3 {[%clk
0:02:57.1]} 10. Qc2 {[%clk 0:02:48.3]} 10... Bxb2 {[%clk 0:02:57.6]} 11. Qxb2
{[%clk 0:02:49.1]} 11... a5 {[%clk 0:02:53.3]} 12. Nh4 {[%clk 0:02:49.3]} 12...
Bg4 {[%clk 0:02:52.8]} 13. f3 {[%clk 0:02:43.2]} 13... Bh5 {[%clk 0:02:52.3]}
14. g4 {[%clk 0:02:44.2]} 14... Bg6 {[%clk 0:02:45.5]} 15. Nxg6 {[%clk
0:02:44.5]} 15... hxg6 {[%clk 0:02:47.4]} 16. h3 {[%clk 0:02:44.5]} 16... Nbd7
{[%clk 0:02:44.2]} 17. f4 {[%clk 0:02:44.7]} 17... e5 {[%clk 0:02:30.6]} 18.
fxe5 {[%clk 0:02:22.1]} 18... Nxe5 {[%clk 0:02:32.5]} 19. g5 {[%clk 0:02:22.4]}
19... Nh5 {[%clk 0:02:24.5]} 20. h4 {[%clk 0:02:12.8]} 20... Ng4 {[%clk
0:02:11.6]} 21. Qd4 {[%clk 0:01:50.4]} 21... Qxe2 {[%clk 0:01:31.1]} 22. Rf2
{[%clk 0:01:50.6]} 22... Nxf2 {[%clk 0:01:28.1]} 23. Qxf2 {[%clk 0:01:46.7]}
23... Qxd3 {[%clk 0:01:27]} 24. cxd5 {[%clk 0:01:47.7]} 24... cxd5 {[%clk
0:01:25.6]} 25. Nf3 {[%clk 0:01:44.7]} 25... Rfe8 {[%clk 0:01:15.9]} 26. Bf1
{[%clk 0:01:43.6]} 26... Qe4 {[%clk 0:01:10.1]} 27. Re1 {[%clk 0:01:37.9]} 27...
Qg4+ {[%clk 0:01:10.3]} 28. Kh2 {[%clk 0:01:38.4]} 28... Qf4+ {[%clk 0:01:02.2]}
29. Kg1 {[%clk 0:01:36.7]} 29... Rxe1 {[%clk 0:00:58.7]} 30. Nxe1 {[%clk
0:01:34.3]} 30... Qg4+ {[%clk 0:00:54.7]} 31. Bg2 {[%clk 0:01:31.3]} 31... Re8
{[%clk 0:00:53.4]} 32. Nf3 {[%clk 0:01:12.8]} 32... Nf4 {[%clk 0:00:50.9]} 33.
Nh2 {[%clk 0:01:00.5]} 33... Nh3+ {[%clk 0:00:47.9]} 0-1

[Event "*** Titled Tuesday 3|2 Blitz"]
[Site "Chess.com"]
[Date "2017.06.06"]
[Round "6"]
[White "SabinaFoisor"]
[Black "proxy6"]
[Result "1-0"]
[WhiteElo "2267"]
[BlackElo "2295"]
[TimeControl "180+2"]
[EndTime "15:04:58 PDT"]
[Termination "SabinaFoisor won by resignation"]

1. d4 {[%clk 0:03:02]} 1... Nf6 {[%clk 0:03:00.6]} 2. c4 {[%clk 0:02:56.1]} 2...
e6 {[%clk 0:03:01.8]} 3. Nf3 {[%clk 0:02:55.8]} 3... d5 {[%clk 0:03:01]} 4. Nc3
{[%clk 0:02:55.3]} 4... Bb4 {[%clk 0:03:01.4]} 5. Qc2 {[%clk 0:02:53.3]} 5... c5
{[%clk 0:02:57]} 6. cxd5 {[%clk 0:02:47.9]} 6... exd5 {[%clk 0:02:54.6]} 7. e3
{[%clk 0:02:48.9]} 7... c4 {[%clk 0:02:35.6]} 8. Be2 {[%clk 0:02:40.7]} 8... O-O
{[%clk 0:02:33.4]} 9. O-O {[%clk 0:02:41.4]} 9... Re8 {[%clk 0:02:29.8]} 10. b3
{[%clk 0:02:35.3]} 10... cxb3 {[%clk 0:02:26.1]} 11. Qxb3 {[%clk 0:02:33.6]}
11... Nc6 {[%clk 0:02:26]} 12. Bb2 {[%clk 0:02:20.5]} 12... Be6 {[%clk
0:02:10.8]} 13. a3 {[%clk 0:02:19.3]} 13... Bf8 {[%clk 0:02:03.1]} 14. Bb5
{[%clk 0:02:16.2]} 14... Rc8 {[%clk 0:01:53.4]} 15. Rab1 {[%clk 0:02:09.1]}
15... a6 {[%clk 0:01:49.6]} 16. Bxc6 {[%clk 0:02:02.4]} 16... bxc6 {[%clk
0:01:51.5]} 17. Na4 {[%clk 0:02:03.2]} 17... c5 {[%clk 0:01:49.5]} 18. Nxc5
{[%clk 0:02:00.7]} 18... Bxc5 {[%clk 0:01:41.2]} 19. dxc5 {[%clk 0:02:01.4]}
19... d4 {[%clk 0:01:40.6]} 20. Qb4 {[%clk 0:01:51.1]} 20... dxe3 {[%clk
0:01:39.7]} 21. fxe3 {[%clk 0:01:51.7]} 21... Bf5 {[%clk 0:01:02.6]} 22. Rbd1
{[%clk 0:01:41.4]} 22... Qe7 {[%clk 0:00:55.8]} 23. Bxf6 {[%clk 0:01:14.2]}
23... Qxe3+ {[%clk 0:00:42.3]} 24. Kh1 {[%clk 0:01:14]} 24... gxf6 {[%clk
0:00:43.3]} 25. Nh4 {[%clk 0:01:04.2]} 25... Re4 {[%clk 0:00:24.5]} 26. Nxf5
{[%clk 0:00:52.3]} 26... Rxb4 {[%clk 0:00:08.6]} 27. Nxe3 {[%clk 0:00:52.6]}
27... Rb3 {[%clk 0:00:09.2]} 28. Nf5 {[%clk 0:00:49.4]} 1-0

[Event "*** Titled Tuesday 3|2 Blitz"]
[Site "Chess.com"]
[Date "2017.06.06"]
[Round "6"]
[White "Keranke"]
[Black "Hikaru"]
[Result "0-1"]
[WhiteElo "2671"]
[BlackElo "2915"]
[TimeControl "180+2"]
[EndTime "15:04:59 PDT"]
[Termination "Hikaru won by resignation"]

1. d4 {[%clk 0:03:02]} 1... Nf6 {[%clk 0:03:02]} 2. Nf3 {[%clk 0:03:02.3]} 2...
e6 {[%clk 0:03:02.1]} 3. Bf4 {[%clk 0:03:03]} 3... d5 {[%clk 0:03:01.6]} 4. e3
{[%clk 0:03:03.5]} 4... c5 {[%clk 0:03:03.5]} 5. c3 {[%clk 0:03:01.2]} 5... Nc6
{[%clk 0:03:05.4]} 6. Nbd2 {[%clk 0:03:02.3]} 6... cxd4 {[%clk 0:03:04.4]} 7.
exd4 {[%clk 0:03:01.6]} 7... Nh5 {[%clk 0:03:03.9]} 8. Be3 {[%clk 0:02:58]} 8...
Bd6 {[%clk 0:03:03.7]} 9. Ne5 {[%clk 0:02:47.3]} 9... g6 {[%clk 0:03:04]} 10.
Nxc6 {[%clk 0:02:42]} 10... bxc6 {[%clk 0:03:04.2]} 11. Be2 {[%clk 0:02:43.5]}
11... Nf4 {[%clk 0:03:04.3]} 12. Bf1 {[%clk 0:02:36.5]} 12... O-O {[%clk
0:02:56.9]} 13. g3 {[%clk 0:02:36.3]} 13... Nh5 {[%clk 0:02:57.9]} 14. Be2
{[%clk 0:02:34.1]} 14... Ng7 {[%clk 0:02:56.2]} 15. Nf3 {[%clk 0:02:30.6]} 15...
Rb8 {[%clk 0:02:55.3]} 16. Qc2 {[%clk 0:02:26.5]} 16... f6 {[%clk 0:02:56.1]}
17. O-O {[%clk 0:02:23.5]} 17... e5 {[%clk 0:02:57]} 18. dxe5 {[%clk 0:02:21]}
18... fxe5 {[%clk 0:02:58.9]} 19. Bxa7 {[%clk 0:02:22.6]} 19... Rb7 {[%clk
0:02:59.7]} 20. Be3 {[%clk 0:02:23.6]} 20... Bh3 {[%clk 0:03:00.7]} 21. Rfd1
{[%clk 0:02:23.4]} 21... Nf5 {[%clk 0:03:00.5]} 22. Bg5 {[%clk 0:02:23.2]} 22...
Qb6 {[%clk 0:03:00.8]} 23. b4 {[%clk 0:01:56.9]} 23... Rbf7 {[%clk 0:03:00.7]}
24. c4 {[%clk 0:00:55.6]} 24... e4 {[%clk 0:02:50.5]} 25. c5 {[%clk 0:00:56.7]}
25... Qxb4 {[%clk 0:02:51.5]} 26. cxd6 {[%clk 0:00:57.2]} 26... exf3 {[%clk
0:02:52]} 27. Bd3 {[%clk 0:00:51.2]} 27... Nd4 {[%clk 0:02:48.1]} 28. Qd2 {[%clk
0:00:50.1]} 28... Qxd6 {[%clk 0:02:37.5]} 29. Bh6 {[%clk 0:00:46.7]} 29... Ne2+
{[%clk 0:02:32.2]} 30. Bxe2 {[%clk 0:00:44.5]} 30... fxe2 {[%clk 0:02:34.1]} 31.
Qxe2 {[%clk 0:00:43.7]} 31... Rxf2 {[%clk 0:02:34.6]} 32. Bxf8 {[%clk
0:00:42.2]} 32... Rxf8 {[%clk 0:02:34.2]} 33. Rac1 {[%clk 0:00:38.2]} 33... Qf6
{[%clk 0:02:28.9]} 34. a4 {[%clk 0:00:36.1]} 34... h5 {[%clk 0:02:28.6]} 35. Re1
{[%clk 0:00:24.1]} 35... c5 {[%clk 0:02:27.6]} 36. a5 {[%clk 0:00:19.8]} 36...
c4 {[%clk 0:02:27.5]} 37. Kh1 {[%clk 0:00:18.9]} 37... c3 {[%clk 0:02:25.4]} 38.
a6 {[%clk 0:00:19.7]} 38... d4 {[%clk 0:02:26.4]} 39. a7 {[%clk 0:00:20.5]}
39... Qc6+ {[%clk 0:02:24.5]} 40. Kg1 {[%clk 0:00:21.3]} 40... d3 {[%clk
0:02:24]} 41. Qa2+ {[%clk 0:00:19.6]} 41... Kh7 {[%clk 0:02:17.9]} 42. Re7+
{[%clk 0:00:18.3]} 42... Kh6 {[%clk 0:02:18]} 43. Rf7 {[%clk 0:00:17.1]} 43...
d2 {[%clk 0:02:16]} 0-1